bitfinex/quotes_BTCUSD_20250922
["timestamp","ask_amount","ask_price","bid_price","bid_amount"]
[1758503192936,0.4156101,114730.0,114720.0,0.14819371]
[1758503193386,0.4156101,114730.0,114710.0,0.49329347]
[1758503193612,0.02705,114720.0,114710.0,0.49329347]
[1758503193840,0.02917,114720.0,114710.0,0.49329347]
[1758503194748,0.02917,114720.0,114710.0,0.49029347]
[1758503194992,0.02917,114720.0,114710.0,0.46659228]
[1758503195434,0.02917,114720.0,114700.0,0.34383246]
[1758503195697,0.02917,114720.0,114710.0,0.46947271]
[1758503195945,0.02877,114720.0,114710.0,0.46947271]
[1758503196383,0.02877,114720.0,114710.0,0.46647271]
[1758503196857,0.07877,114720.0,114700.0,0.18605249]
[1758503197089,0.00304,114710.0,114700.0,0.47813249]
[1758503197285,0.00516,114710.0,114700.0,0.47813249]
[1758503197554,0.00212,114710.0,114700.0,0.47813249]
[1758503198235,0.00212,114710.0,114700.0,0.53202076]
[1758503198444,0.00212,114710.0,114700.0,0.52902076]
[1758503199147,0.00516,114710.0,114700.0,0.44898186]
[1758503199368,0.00516,114710.0,114700.0,0.45598186]
[1758503200420,0.00212,114710.0,114700.0,0.45598186]
[1758503202906,0.00516,114710.0,114700.0,0.45598186]
[1758503203374,0.32917,114710.0,114700.0,0.45598186]
[1758503203609,0.32917,114710.0,114700.0,0.29908]
[1758503204414,0.32917,114710.0,114700.0,0.18136791]
[1758503204884,0.37917,114710.0,114700.0,0.007]
[1758503205235,0.37917,114710.0,114680.0,0.47503671]
[1758503205236,0.67109,114710.0,114680.0,0.47503671]
[1758503205435,0.67109,114710.0,114680.0,0.06628216]
[1758503205436,0.02705,114700.0,114680.0,0.06628216]
[1758503205650,0.02917,114690.0,114680.0,0.00047093]
[1758503205866,0.02917,114690.0,114680.0,0.29239093]
[1758503206086,0.02917,114690.0,114680.0,0.00047093]
[1758503206312,0.02917,114690.0,114680.0,0.17486925]
[1758503207009,0.00212,114690.0,114680.0,0.17486925]
[1758503207442,0.00516,114690.0,114680.0,0.00047093]
[1758503207653,0.02917,114690.0,114680.0,0.00047093]
[1758503208312,0.03117,114690.0,114680.0,0.00047093]
[1758503209586,0.03117,114690.0,114680.0,0.17486925]
[1758503209825,0.03117,114690.0,114680.0,0.00047093]
[1758503210405,0.03117,114690.0,114680.0,0.17486925]
[1758503210865,0.03117,114690.0,114680.0,0.00047093]
[1758503211107,0.03117,114690.0,114670.0,0.44923585]
[1758503211287,0.03164093,114690.0,114680.0,0.17439832]
[1758503212076,0.02964093,114690.0,114680.0,0.17439832]
[1758503212289,0.00663093,114690.0,114680.0,0.17439832]
[1758503212511,0.02964093,114690.0,114680.0,0.17439832]
[1758503212744,0.03064093,114690.0,114680.0,0.46615832]
[1758503212978,0.03064093,114690.0,114680.0,0.29176]
[1758503213626,0.03064093,114690.0,114680.0,0.46615832]
[1758503213847,0.03064093,114690.0,114670.0,0.45787652]
[1758503214721,0.03064093,114690.0,114680.0,0.17439832]
[1758503215175,0.02964093,114690.0,114680.0,0.17439832]
[1758503215400,0.02860093,114690.0,114680.0,0.17439832]
[1758503215617,0.02660093,114690.0,114680.0,0.17439832]
[1758503215830,0.02964093,114690.0,114680.0,0.17439832]
[1758503216041,0.03164093,114690.0,114680.0,0.17439832]
[1758503216696,0.00247093,114690.0,114680.0,0.18681612]
[1758503216924,0.00247093,114690.0,114680.0,0.16066549]
[1758503217142,0.00247093,114690.0,114680.0,0.17850532]
[1758503218721,0.00247093,114690.0,114680.0,0.47018532]
[1758503218929,0.00247093,114690.0,114680.0,0.45274549]
[1758503219779,0.00247093,114690.0,114680.0,0.16106549]
[1758503219995,0.00247093,114690.0,114680.0,0.17850532]
[1758503220243,0.00247093,114690.0,114680.0,0.14864769]
[1758503220471,0.00247093,114690.0,114680.0,0.16608752]
[1758503221605,0.03041093,114690.0,114680.0,0.14824769]
[1758503221885,0.03041093,114690.0,114680.0,0.43980769]
[1758503222131,0.03041093,114690.0,114680.0,0.14824769]
[1758503222342,0.03041093,114690.0,114680.0,0.43980769]
[1758503223025,0.00247093,114690.0,114680.0,0.49892673]
[1758503223710,0.00247093,114690.0,114680.0,0.20736673]
[1758503223946,0.00443093,114690.0,114680.0,0.41361706]
[1758503224169,0.02723093,114690.0,114680.0,0.41361706]
[1758503224630,0.00247093,114690.0,114680.0,0.41361706]
[1758503225067,0.00247093,114690.0,114680.0,0.52903863]
[1758503225291,0.00247093,114690.0,114680.0,0.52943863]
[1758503225506,0.00761093,114690.0,114680.0,0.23751863]
[1758503225745,0.03041093,114690.0,114680.0,0.52899863]
[1758503226142,0.02723093,114690.0,114680.0,0.52899863]
[1758503226574,0.00761093,114690.0,114670.0,0.53009652]
[1758503226803,0.30443093,114690.0,114680.0,0.17439832]
[1758503227432,0.32841093,114690.0,114680.0,0.17439832]
[1758503227642,0.32841093,114690.0,114680.0,0.17539832]
[1758503228528,0.37841093,114690.0,114680.0,0.001]
[1758503228966,0.71841093,114690.0,114680.0,0.001]
[1758503229182,0.05,114680.0,114660.0,0.15792822]
[1758503229401,0.02967,114670.0,114660.0,0.15792822]
[1758503229671,0.02967,114670.0,114650.0,0.17439264]
[1758503229885,0.0031,114660.0,114650.0,0.25966231]
[1758503230098,0.02967,114660.0,114650.0,0.25966231]
[1758503230338,0.02967,114660.0,114650.0,0.17439264]
[1758503231431,0.02967,114660.0,114650.0,0.18239264]
[1758503232714,0.04017278,114660.0,114650.0,0.008]
[1758503233355,0.09017278,114660.0,114650.0,0.008]
[1758503235089,0.09017278,114660.0,114640.0,0.1649564]
[1758503235290,0.06573278,114660.0,114650.0,0.17444395]
[1758503235789,0.06573278,114660.0,114640.0,0.24133679]
[1758503236001,0.08707278,114660.0,114640.0,0.1649564]
[1758503236229,0.0031,114650.0,114640.0,0.1649564]
[1758503236439,0.02967,114650.0,114640.0,0.1649564]
[1758503236841,0.02967,114650.0,114640.0,0.1689564]
[1758503237329,0.02967,114650.0,114640.0,0.1649564]
[1758503237531,0.02967,114650.0,114640.0,0.17200352]
[1758503237744,0.00213,114650.0,114640.0,0.17200352]
[1758503238405,0.08804278,114660.0,114650.0,0.17444395]
[1758503238622,0.11640427,114660.0,114650.0,0.17444395]
[1758503238840,0.11640427,114660.0,114640.0,0.19022823]
[1758503239070,0.02754,114650.0,114640.0,0.19022823]
[1758503239294,0.00523,114650.0,114640.0,0.19022823]
[1758503239520,0.32967,114650.0,114640.0,0.18150629]
[1758503239955,0.37967,114650.0,114640.0,0.00704712]
[1758503240167,0.4059036,114650.0,114640.0,4.712e-05]
[1758503241064,0.4059036,114650.0,114630.0,0.15698527]
[1758503241281,0.3783636,114650.0,114630.0,0.15703241]
[1758503241497,0.02754,114640.0,114630.0,0.15703241]
[1758503241732,0.4037736,114650.0,114640.0,0.17445917]
[1758503241945,0.4059036,114650.0,114630.0,0.15703241]
[1758503242419,0.3814636,114650.0,114630.0,4.714e-05]
[1758503242646,0.02754,114640.0,114630.0,0.1745213]
[1758503242912,0.02967,114640.0,114630.0,4.714e-05]
[1758503243136,0.07967,114640.0,114630.0,4.714e-05]
[1758503243585,0.10590645,114640.0,114630.0,4.714e-05]
[1758503244055,0.39702645,114640.0,114630.0,4.714e-05]
[1758503244274,0.39698645,114640.0,114630.0,4.714e-05]
[1758503244719,0.11290645,114640.0,114630.0,0.17452153]
[1758503244980,0.40398645,114640.0,114630.0,4.714e-05]
[1758503245816,0.39698645,114640.0,114630.0,4.714e-05]
[1758503246246,0.40398645,114640.0,114630.0,4.714e-05]
[1758503246635,0.40394645,114640.0,114630.0,4.714e-05]
[1758503247060,0.11290645,114640.0,114620.0,0.1485786]
[1758503247260,0.40394645,114640.0,114620.0,0.1485786]
[1758503247674,0.40393645,114640.0,114610.0,0.18357302]
[1758503247877,0.0265,114630.0,114610.0,0.18331446]
[1758503248083,0.0265,114630.0,114620.0,0.17448961]
[1758503248294,0.02863,114630.0,114610.0,0.2628565]
[1758503248493,0.02863,114630.0,114620.0,0.17448961]
[1758503248923,0.02863,114630.0,114610.0,0.18331446]
[1758503249339,0.02863,114630.0,114620.0,0.17448961]
[1758503249536,0.02554,114630.0,114620.0,0.17448961]
[1758503249794,0.00513,114630.0,114620.0,0.17448961]
[1758503250052,0.00213,114630.0,114620.0,0.21027002]
[1758503250265,0.00522,114630.0,114620.0,0.17448961]
[1758503250473,0.00822,114630.0,114620.0,0.17448961]
[1758503250678,0.00522,114630.0,114610.0,0.18371446]
[1758503250888,0.32863,114630.0,114610.0,0.00014144]
[1758503251097,0.61959,114630.0,114610.0,0.17464615]
[1758503251330,0.02341,114620.0,114610.0,0.17464615]
[1758503251733,0.61746,114630.0,114620.0,0.17448961]
[1758503251945,0.61959,114630.0,114610.0,0.17504615]
[1758503252144,0.62259,114630.0,114620.0,0.17448961]
[1758503252505,0.61959,114630.0,114620.0,0.17448961]
[1758503252712,0.61955,114630.0,114620.0,0.17448961]
[1758503253115,0.32863,114630.0,114620.0,0.14833214]
[1758503253336,0.33163,114630.0,114620.0,0.14833214]
[1758503254000,0.32854,114630.0,114620.0,0.14833214]
[1758503254446,0.33163,114630.0,114620.0,0.14833214]
[1758503254876,0.33163,114630.0,114620.0,0.18066997]
[1758503255073,0.32854,114630.0,114620.0,0.18066997]
[1758503255308,0.61942,114630.0,114620.0,0.18066997]
[1758503255660,0.62251,114630.0,114620.0,0.18066997]
[1758503256328,0.62251,114630.0,114620.0,0.14833214]
[1758503257256,0.003,114630.0,114620.0,0.1657811]
[1758503257465,0.003,114630.0,114620.0,0.196333]
[1758503257683,0.003,114630.0,114620.0,0.26415371]
[1758503259693,0.003,114630.0,114620.0,0.23759624]
[1758503261162,0.003,114630.0,114620.0,0.30794048]
[1758503262805,0.00822,114630.0,114620.0,0.17448961]
[1758503263050,0.03163,114630.0,114620.0,0.17448961]
[1758503263278,0.00822,114630.0,114610.0,0.17464615]
[1758503263492,0.32854,114630.0,114610.0,0.17464615]
[1758503263738,0.0265,114620.0,114610.0,0.03029334]
[1758503263960,0.02863,114620.0,114610.0,0.00014144]
[1758503265505,0.02863,114620.0,114610.0,0.17464628]
[1758503265724,0.02863,114620.0,114610.0,0.14847512]
[1758503266187,0.02863,114620.0,114610.0,0.21412426]
[1758503267314,0.02863,114620.0,114610.0,0.17450484]
[1758503268675,0.03563,114620.0,114600.0,0.24771908]
[1758503268888,0.07877115,114620.0,114600.0,0.18315862]
[1758503269116,0.0265,114610.0,114600.0,0.18315862]
[1758503269381,0.00522,114610.0,114600.0,0.17452006]
[1758503269606,0.07863,114610.0,114590.0,0.0002]
[1758503269825,0.66915,114610.0,114590.0,0.17473483]
[1758503270035,0.6953929,114610.0,114590.0,0.17473483]
[1758503270243,0.70533994,114610.0,114590.0,0.17473483]
[1758503271314,0.70833994,114610.0,114590.0,0.17473483]
[1758503271498,0.70533994,114610.0,114590.0,0.17473483]
[1758503271729,0.70533994,114610.0,114590.0,0.14856367]
[1758503271971,0.70833994,114610.0,114590.0,0.14856367]
[1758503272162,0.6983929,114610.0,114590.0,0.14856367]
[1758503272357,0.00309,114600.0,114590.0,0.14856367]
[1758503272675,0.02863,114600.0,114580.0,0.25023603]
[1758503272882,0.02863,114600.0,114580.0,0.61729217]
[1758503273095,0.02863,114600.0,114580.0,0.32645217]
[1758503273315,0.02341,114590.0,114580.0,0.17474976]
[1758503273539,0.02863,114590.0,114580.0,0.20490166]
[1758503274204,0.02863,114590.0,114580.0,0.0002]
[1758503274441,0.32863,114590.0,114580.0,0.0002]
[1758503274674,0.32863,114590.0,114580.0,0.17475053]
[1758503275099,0.35487671,114590.0,114580.0,0.17475053]
[1758503275321,0.35787671,114590.0,114580.0,0.17475053]
[1758503275590,0.03137671,114590.0,114580.0,0.17475053]
[1758503276047,0.003,114590.0,114580.0,0.21061485]
[1758503276323,0.003,114590.0,114580.0,0.61683642]
[1758503277703,0.0364854,114610.0,114600.0,0.1483489]
[1758503277963,0.00327115,114620.0,114610.0,0.17450484]
[1758503278183,0.05530115,114620.0,114610.0,0.17450484]
[1758503278435,0.08154129,114620.0,114610.0,0.17450484]
[1758503278659,0.02638129,114620.0,114610.0,0.17450484]
[1758503278810,0.02638129,114620.0,114610.0,0.20465674]
[1758503279030,0.00014115,114620.0,114610.0,0.20065674]
[1758503279469,0.00714115,114620.0,114610.0,0.20065674]
[1758503279671,0.00714115,114620.0,114610.0,0.20105674]
[1758503279876,0.00714115,114620.0,114610.0,0.22163102]
[1758503280286,0.01230115,114620.0,114610.0,0.20065674]
[1758503280491,0.03587115,114620.0,114610.0,0.20065674]
[1758503281799,0.02887115,114620.0,114610.0,0.20065674]
[1758503282039,0.00314115,114620.0,114610.0,0.20065674]
[1758503282459,0.00314115,114620.0,114610.0,0.20105674]
[1758503282674,0.00314115,114620.0,114610.0,0.20065674]
[1758503282861,0.00014115,114620.0,114610.0,0.20065674]
[1758503283274,0.00014115,114620.0,114610.0,0.20265674]
[1758503283709,0.02887115,114620.0,114610.0,0.17648558]
[1758503284130,0.07887115,114620.0,114610.0,0.002]
[1758503284359,0.07887115,114620.0,114610.0,0.17650484]
[1758503284572,0.07887115,114620.0,114610.0,0.002]
[1758503284800,0.10511115,114620.0,114610.0,0.002]
[1758503285231,0.10511115,114620.0,114610.0,0.17650484]
[1758503286079,0.10511115,114620.0,114610.0,0.002]
[1758503286725,0.44511115,114620.0,114610.0,0.002]
[1758503286975,0.74511115,114620.0,114610.0,0.002]
[1758503287624,0.3,114610.0,114590.0,0.1832611]
[1758503287837,0.02873,114600.0,114590.0,0.1832611]
[1758503288736,0.02873,114600.0,114590.0,0.18326205]
[1758503289907,0.02873,114600.0,114590.0,0.16040746]
[1758503290138,0.37814,114610.0,114600.0,0.17452006]
[1758503290358,0.41638115,114620.0,114610.0,0.17450484]
[1758503290578,0.07638115,114620.0,114610.0,0.17450484]
[1758503291036,0.07841115,114620.0,114610.0,0.17450484]
[1758503291487,0.02638115,114620.0,114610.0,0.17150484]
[1758503291705,0.00014115,114620.0,114610.0,0.23515533]
[1758503291928,0.00014115,114620.0,114610.0,0.28732641]
[1758503292159,0.00314115,114620.0,114610.0,0.28732641]
[1758503292841,0.00014115,114620.0,114610.0,0.28732641]
[1758503294162,0.00014115,114620.0,114610.0,0.29913121]
[1758503294349,0.00014115,114620.0,114610.0,0.38440088]
[1758503294740,0.00014115,114620.0,114610.0,0.37459608]
[1758503294963,0.00014115,114620.0,114610.0,0.66459608]
[1758503295406,0.00014115,114620.0,114610.0,0.37419608]
[1758503295627,0.00014115,114620.0,114610.0,0.66415608]
[1758503296288,0.00217115,114620.0,114610.0,0.37419608]
[1758503296509,0.00014115,114620.0,114610.0,0.66415608]
[1758503297180,0.00014115,114620.0,114610.0,0.66455608]
[1758503297405,0.00537115,114620.0,114610.0,0.66411608]
[1758503297624,0.00537115,114620.0,114610.0,0.37419608]
[1758503297847,0.03031115,114620.0,114610.0,0.28892641]
[1758503298052,0.00537115,114620.0,114610.0,0.57884641]
[1758503298274,0.03031115,114620.0,114610.0,0.57884641]
[1758503298507,0.00217115,114620.0,114610.0,0.57884641]
[1758503299357,0.00014115,114620.0,114610.0,0.57884641]
[1758503300005,0.00014115,114620.0,114610.0,0.57924641]
[1758503300452,0.00014115,114620.0,114610.0,0.57884641]
[1758503300668,0.00014115,114620.0,114610.0,0.60081795]
[1758503301990,0.00014115,114620.0,114610.0,0.57884641]
[1758503303325,0.00217115,114620.0,114610.0,0.28892641]
[1758503303547,0.00537115,114620.0,114610.0,0.28892641]
[1758503304262,0.03031115,114620.0,114610.0,0.20365674]
[1758503304481,0.03031115,114620.0,114610.0,0.49345674]
[1758503305151,0.03031115,114620.0,114610.0,0.17350484]
[1758503305795,0.00217115,114620.0,114610.0,0.17350484]
[1758503306030,0.00217115,114620.0,114610.0,0.24382011]
[1758503306319,0.00217115,114620.0,114610.0,0.17350484]
[1758503307691,0.00014115,114620.0,114610.0,0.20405674]
[1758503308358,0.00014115,114620.0,114610.0,0.20365674]
[1758503309234,0.00511115,114620.0,114610.0,0.20365674]
[1758503309447,0.00511115,114620.0,114610.0,0.17650484]
[1758503309448,0.02835115,114620.0,114610.0,0.17650484]
[1758503312508,0.00213115,114620.0,114610.0,0.17650484]
[1758503312944,0.00014115,114620.0,114610.0,0.17650484]
[1758503313160,0.00213115,114620.0,114610.0,0.17650484]
[1758503313587,0.02537115,114620.0,114610.0,0.17650484]
[1758503313850,0.00511115,114620.0,114610.0,0.17650484]
[1758503314091,0.02835115,114620.0,114610.0,0.17650484]
[1758503315683,0.02835115,114620.0,114610.0,0.002]
[1758503315928,0.37835115,114620.0,114610.0,0.002]
[1758503316154,0.66803115,114620.0,114610.0,0.002]
[1758503317509,0.66803115,114620.0,114590.0,0.45881422]
[1758503317728,0.64681115,114620.0,114590.0,0.16913422]
[1758503317945,0.02622,114610.0,114590.0,0.16913422]
[1758503318167,0.00199,114600.0,114590.0,0.16913422]
[1758503319528,0.00497,114600.0,114590.0,0.17113422]
[1758503320229,0.02324,114610.0,114600.0,0.17452006]
[1758503320448,0.02622,114610.0,114600.0,0.17452006]
[1758503320675,0.07821,114610.0,114590.0,0.17113422]
[1758503320910,0.02622,114600.0,114590.0,0.18526205]
[1758503321150,0.02821,114600.0,114590.0,0.18326205]
[1758503321374,0.02523,114600.0,114590.0,0.18326205]
[1758503322077,0.02821,114600.0,114590.0,0.18326205]
[1758503322310,0.02821,114600.0,114590.0,0.18526205]
[1758503322755,0.00497,114600.0,114590.0,0.18526205]
[1758503322984,0.00199,114600.0,114590.0,0.18526205]
[1758503323443,0.05,114610.0,114600.0,0.17452006]
[1758503323664,0.05199,114610.0,114600.0,0.17452006]
[1758503323890,0.07821,114610.0,114590.0,0.18526205]
[1758503324334,0.07821,114610.0,114590.0,0.1765342]
[1758503324548,0.07821,114610.0,114590.0,0.1745342]
[1758503324763,0.08021,114610.0,114590.0,0.1745342]
[1758503325175,0.07821,114610.0,114590.0,0.1745342]
[1758503325449,0.08021,114610.0,114590.0,0.1745342]
[1758503325630,0.07723,114610.0,114590.0,0.1745342]
[1758503325852,0.00298,114600.0,114590.0,0.1745342]
[1758503326061,0.00497,114600.0,114590.0,0.17453529]
[1758503326279,0.07821,114600.0,114590.0,0.17453529]
[1758503326970,0.07523,114600.0,114590.0,0.23930862]
[1758503327197,0.05199,114600.0,114590.0,0.17453529]
[1758503327409,0.07821,114600.0,114590.0,0.17453529]
[1758503328089,0.07821,114600.0,114590.0,0.17653529]
[1758503328351,0.05497,114600.0,114590.0,0.17653529]
[1758503328822,0.05,114600.0,114590.0,0.17653529]
[1758503330640,0.05298,114610.0,114600.0,0.17452006]
[1758503330855,0.98280115,114620.0,114610.0,0.17450484]
[1758503331072,0.71835115,114620.0,114610.0,0.17450484]
[1758503331729,0.69213115,114620.0,114610.0,0.17450484]
[1758503332588,0.69713115,114620.0,114610.0,0.17450484]
[1758503332813,0.34514115,114620.0,114610.0,0.17450484]
[1758503333088,0.34713115,114620.0,114610.0,0.17450484]
[1758503333303,0.37335115,114620.0,114610.0,0.17450484]
[1758503333530,0.37335115,114620.0,114600.0,0.46420006]
[1758503333746,0.02622,114610.0,114600.0,0.28994163]
[1758503334163,0.66736115,114620.0,114610.0,0.17450484]
[1758503334373,0.66935115,114620.0,114610.0,0.17450484]
[1758503334604,0.66835115,114620.0,114610.0,0.17450484]
[1758503334841,0.66935115,114620.0,114600.0,0.28994163]
[1758503335057,0.66835115,114620.0,114600.0,0.28994163]
[1758503335442,0.66935115,114620.0,114610.0,0.17450484]
[1758503335654,0.66835115,114620.0,114600.0,0.20467196]
[1758503335820,0.71835115,114620.0,114610.0,0.17450484]
[1758503336867,1.00803115,114620.0,114590.0,0.24827538]
[1758503337083,0.02776,114610.0,114590.0,0.33354505]
[1758503337286,0.00216,114600.0,114590.0,0.29868362]
[1758503337503,0.6696,114600.0,114580.0,0.0002]
[1758503337936,0.05,114590.0,114580.0,0.0002]
[1758503338343,0.05216,114590.0,114580.0,0.0002]
[1758503338516,0.07992,114590.0,114580.0,0.0002]
[1758503339890,0.07992,114590.0,114580.0,0.17475053]
[1758503340783,0.07992,114590.0,114580.0,0.0002]
[1758503341011,0.07992,114590.0,114580.0,0.0042]
[1758503342027,0.36956,114590.0,114580.0,0.0042]
[1758503342230,0.36956,114590.0,114580.0,0.0002]
[1758503345191,0.07992,114590.0,114580.0,0.0002]
[1758503345404,0.36956,114590.0,114580.0,0.17475053]
[1758503345617,0.36956,114590.0,114580.0,0.20970195]
[1758503345875,0.05509,114590.0,114580.0,0.17475053]
[1758503346083,0.33964,114600.0,114590.0,0.17453529]
[1758503346506,0.36956,114600.0,114590.0,0.17453529]
[1758503346709,0.66956,114600.0,114580.0,0.17515053]
[1758503346901,0.66956,114600.0,114580.0,0.17475053]
[1758503347138,0.37992,114600.0,114590.0,0.17453529]
[1758503347367,0.66956,114600.0,114590.0,0.17453529]
[1758503347595,0.66956,114600.0,114580.0,0.17475053]
[1758503347798,0.68326703,114600.0,114590.0,0.17453529]
[1758503348642,0.67926703,114600.0,114590.0,0.17453529]
[1758503348854,0.01370703,114600.0,114590.0,0.20468719]
[1758503349070,0.77226115,114620.0,114610.0,0.17450484]
[1758503349276,1.30970115,114620.0,114610.0,0.17450484]
[1758503349475,1.30970115,114620.0,114610.0,0.17050484]
[1758503350033,1.31941777,114620.0,114610.0,0.17050484]
[1758503350907,1.31941777,114620.0,114600.0,0.17450724]
[1758503351126,1.32341777,114620.0,114600.0,0.17450724]
[1758503351708,1.32341777,114620.0,114610.0,0.17450484]
[1758503351947,1.31941777,114620.0,114610.0,0.17450484]
[1758503352168,1.32341777,114620.0,114610.0,0.17450484]
[1758503352624,0.04377777,114620.0,114610.0,0.17450484]
[1758503352816,0.30561777,114620.0,114610.0,0.17450484]
[1758503353493,0.33343777,114620.0,114610.0,0.17850484]
[1758503353705,0.32943777,114620.0,114610.0,0.17850484]
[1758503354151,0.00985777,114620.0,114610.0,0.17850484]
[1758503354375,0.30140777,114620.0,114610.0,0.17850484]
[1758503354560,0.32922777,114620.0,114610.0,0.17850484]
[1758503355248,0.30140777,114620.0,114610.0,0.17850484]
[1758503355694,0.01180777,114620.0,114610.0,0.17850484]
[1758503355912,0.01487777,114620.0,114610.0,0.17850484]
[1758503356195,0.03962777,114620.0,114610.0,0.17850484]
[1758503356411,0.01180777,114620.0,114610.0,0.17850484]
[1758503356636,0.30136777,114620.0,114610.0,0.17850484]
[1758503356853,0.32918777,114620.0,114610.0,0.17850484]
[1758503358323,0.03962777,114620.0,114610.0,0.17850484]
[1758503360003,0.03655777,114620.0,114610.0,0.17850484]
[1758503360212,0.01180777,114620.0,114610.0,0.17850484]
[1758503360426,0.00985777,114620.0,114610.0,0.24399795]
[1758503360642,0.00985777,114620.0,114610.0,0.24439795]
[1758503360852,0.00985777,114620.0,114610.0,0.20905674]
[1758503361061,0.00985777,114620.0,114610.0,0.20865674]
[1758503361937,0.00985777,114620.0,114610.0,0.20905674]
[1758503362496,0.00014115,114620.0,114610.0,0.20905674]
[1758503362708,0.02714115,114620.0,114610.0,0.20905674]
[1758503363911,0.03684832,114620.0,114610.0,0.20905674]
[1758503364552,0.03684832,114620.0,114610.0,0.20865674]
[1758503364758,0.04186832,114620.0,114610.0,0.20865674]
[1758503364994,0.04186832,114620.0,114610.0,0.49813674]
[1758503365198,0.03684832,114620.0,114610.0,0.49813674]
[1758503365407,0.03684832,114620.0,114610.0,0.56590114]
[1758503365613,0.03684832,114620.0,114610.0,0.49863674]
[1758503367172,0.02714115,114620.0,114610.0,0.49863674]
[1758503367376,0.02714115,114620.0,114610.0,0.58390641]
[1758503367604,0.02714115,114620.0,114610.0,0.58430641]
[1758503368032,0.02714115,114620.0,114610.0,0.58426641]
[1758503368234,0.02714115,114620.0,114610.0,0.66794849]
[1758503371088,0.02714115,114620.0,114610.0,0.66994849]
[1758503371816,0.02714115,114620.0,114610.0,0.66594849]
[1758503372163,0.02714115,114620.0,114610.0,0.38150849]
[1758503372373,0.02714115,114620.0,114610.0,0.67090849]
[1758503374514,0.01872014,114620.0,114610.0,0.67090849]
[1758503374725,0.09527283,114650.0,114640.0,0.17445917]
[1758503374907,0.09527283,114650.0,114640.0,0.21236641]
[1758503374908,0.09729283,114650.0,114640.0,0.21236641]
[1758503375173,0.09729283,114650.0,114640.0,0.03790724]
[1758503375393,0.09729283,114650.0,114640.0,0.21236641]
[1758503375607,0.10693543,114650.0,114640.0,0.21236641]
[1758503376006,0.15693543,114650.0,114640.0,0.17445917]
[1758503376259,0.0880026,114650.0,114640.0,0.17545917]
[1758503376938,0.0880026,114650.0,114640.0,0.001]
[1758503377157,0.37740485,114650.0,114640.0,0.001]
[1758503380264,0.37736485,114650.0,114640.0,0.001]
[1758503381366,0.06488485,114650.0,114640.0,0.001]
[1758503381585,0.08808485,114650.0,114640.0,0.17545917]
[1758503381807,0.08808485,114650.0,114640.0,0.21045251]
[1758503381995,0.08808485,114650.0,114640.0,0.03599334]
[1758503382207,0.08808485,114650.0,114640.0,0.001]
[1758503382413,0.08808485,114650.0,114640.0,0.17545917]
[1758503382626,0.08808485,114650.0,114640.0,0.001]
[1758503383090,0.08808485,114650.0,114640.0,0.17545917]
[1758503383502,0.08808485,114650.0,114640.0,0.001]
[1758503383708,0.37732485,114650.0,114640.0,0.17545917]
[1758503383920,0.08808485,114650.0,114640.0,0.17545917]
[1758503384186,0.37732485,114650.0,114640.0,0.17545917]
[1758503384852,0.37732485,114650.0,114640.0,0.001]
[1758503386427,0.32728485,114650.0,114640.0,0.17545917]
[1758503386747,0.37728485,114650.0,114640.0,0.17545917]
[1758503386958,0.08808485,114650.0,114640.0,0.21045236]
[1758503387166,0.37728485,114650.0,114640.0,0.21045236]
[1758503387578,0.08494485,114650.0,114640.0,0.17545917]
[1758503387784,0.05972485,114650.0,114640.0,0.17545917]
[1758503388236,8.225e-05,114650.0,114640.0,0.29088074]
[1758503388448,8.225e-05,114650.0,114640.0,0.29128074]
[1758503389063,8.225e-05,114650.0,114640.0,0.29028074]
[1758503389500,8.225e-05,114650.0,114640.0,0.37510809]
[1758503390331,8.225e-05,114650.0,114640.0,0.58200074]
[1758503390601,0.00210225,114650.0,114640.0,0.58200074]
[1758503390838,0.02844225,114650.0,114640.0,0.003]
[1758503391059,0.07844225,114650.0,114640.0,0.003]
[1758503391711,0.07844225,114650.0,114640.0,0.17745917]
[1758503393256,0.07844225,114650.0,114640.0,0.003]
[1758503395766,0.47276225,114650.0,114640.0,0.003]
[1758503397396,0.76180225,114650.0,114640.0,0.003]
[1758503398464,0.47276225,114650.0,114640.0,0.003]
[1758503398667,0.76176225,114650.0,114640.0,0.003]
[1758503400397,1.10176225,114650.0,114640.0,0.003]
[1758503400618,1.10781485,114650.0,114640.0,0.003]
[1758503400846,1.13405438,114650.0,114640.0,0.003]
[1758503401072,4.08666422,114650.0,114640.0,0.003]
[1758503402029,4.10562015,114650.0,114640.0,0.003]
[1758503402467,0.3,114620.0,114610.0,0.0025]
[1758503402685,0.35,114620.0,114610.0,0.0025]
[1758503402906,0.37768,114620.0,114610.0,0.0025]
[1758503403123,0.6666,114620.0,114610.0,0.0025]
[1758503404453,0.6666,114620.0,114610.0,0.0055]
[1758503405530,0.76092,114620.0,114610.0,0.0055]
[1758503405779,0.76092,114620.0,114610.0,0.005]
[1758503406010,1.10092,114620.0,114610.0,0.005]
[1758503406449,1.42716522,114620.0,114610.0,0.005]
[1758503407144,1.42716522,114620.0,114610.0,0.002]
[1758503407592,1.13828522,114620.0,114610.0,0.002]
[1758503407810,1.42716522,114620.0,114610.0,0.002]
[1758503409180,1.13828522,114620.0,114610.0,0.002]
[1758503409372,1.42716522,114620.0,114610.0,0.002]
[1758503412528,1.13828522,114620.0,114610.0,0.002]
[1758503412788,1.42716522,114620.0,114610.0,0.002]
[1758503415469,1.42716522,114620.0,114610.0,0.002]
[1758503417713,1.13828522,114620.0,114610.0,0.002]
[1758503417932,1.42712522,114620.0,114610.0,0.002]
[1758503420246,1.40454522,114620.0,114610.0,0.002]
[1758503420470,1.42761522,114620.0,114610.0,0.002]
[1758503420959,1.13877522,114620.0,114610.0,0.002]
[1758503421187,1.40147522,114620.0,114610.0,0.002]
[1758503421692,1.42754522,114620.0,114610.0,0.002]
[1758503422662,1.13870522,114620.0,114610.0,0.004]
[1758503422894,1.42750522,114620.0,114610.0,0.004]
[1758503423116,1.39940522,114620.0,114610.0,0.004]
[1758503423767,1.40137522,114620.0,114610.0,0.004]
[1758503423999,1.42744522,114620.0,114610.0,0.004]
[1758503424440,1.13864522,114620.0,114610.0,0.004]
[1758503424639,0.47060522,114620.0,114610.0,0.17850484]
[1758503424942,0.47060522,114620.0,114610.0,0.21595245]
[1758503425166,0.75936522,114620.0,114610.0,0.21595245]
[1758503425796,0.75936522,114620.0,114610.0,0.17890484]
[1758503426933,0.17060522,114620.0,114610.0,0.17890484]
[1758503427157,0.45936522,114620.0,114610.0,0.17890484]
[1758503427404,0.35,114630.0,114620.0,0.17448961]
[1758503427621,0.63876,114630.0,114620.0,0.17448961]
[1758503427852,0.6649987,114630.0,114620.0,0.17488961]
[1758503428089,0.6649987,114630.0,114620.0,0.0004]